{"text_format":"3","workbook":"xlsx","n_sheets":1,"sheets":["Bảng tổng hợp kết quả hội đồng "],"not_rendered":{"defined_names":1},"read":"whole","date_system":"1900"}

{"sheet":"Bảng tổng hợp kết quả hội đồng ","index":0,"n_rows":55,"n_cols":17,"rows_kept":55,"merged":[[0,0,0,2],[0,3,0,8],[1,0,2,2],[1,3,1,8],[2,3,2,8],[4,0,4,15],[6,0,6,15],[8,0,9,0],[8,1,9,1],[8,2,9,2],[8,3,9,3],[8,4,9,4],[8,5,9,5],[8,6,9,6],[8,7,8,14],[8,15,9,15],[51,0,51,6],[52,0,52,7],[53,1,53,3],[53,10,53,12],[54,1,54,3],[54,10,54,12]]}
["KHOA CÔNG TRÌNH",null,null,"CỘNG HÒA XÃ HỘI CHỦ NGHĨA VIỆT NAM"]
["HỘI ĐỒNG CÔNG TRÌNH ",null,null,"Độc lập - Tự do - Hạnh phúc"]
[]
[]
["TỔNG HỢP KẾT QUẢ ĐÁNH GIÁ ĐỀ TÀI NCKH CỦA SINH VIÊN\nTẠI HỘI NGHỊ KHOA HỌC SINH VIÊN CẤP KHOA \nNăm học ….."]
[]
["                                                                                                     Kính gửi: Phòng Khoa học Công nghệ & HTQT"]
[]
["TT","Tên đề tài","SVTH","Lớp","Khoa","GVHD","Bộ môn","Điểm đánh giá các tiêu chí",{"$nulls":7},"Ghi chú (đạt giải nhất, nhì, ba nếu có)"]
[{"$nulls":7},"Điểm TB","Tổng quan và sự cần thiết của ĐT","Nội dung  nghiên cứu","Phương pháp nghiên cứu","Kết quả nghiên cứu","Trình bày báo cáo và trả lời câu hỏi","Đánh giá về khả năng đóng góp của sinh viên","Có sản phẩm công bố "]
[1,"Nghiên cứu cơ chế phá hoại của tường chắn đất có cốt và đề xuất giải pháp tối ưu","Nguyễn Quang Huy\nLương Minh Huyền \nBùi Lê Duy Anh \nLê Thị Ngọc \nĐoàn Hữu Hiếu","63N\n64QLXD2\n64KTXD3 \n64KTXD4\n64CX3","Công trình","TS. Đỗ Tuấn Nghĩa\nTS. Hoàng Thị Lụa","Địa kỹ thuật",{"$f":"SUM(I11:O11)","v":92.5},{"$f":"38/4","v":9.5},{"$f":"78/4","v":19.5},{"$f":"38/4","v":9.5},{"$f":"118/4","v":29.5},{"$f":"38/4","v":9.5},{"$f":"60/4","v":15},null,"Đạt giải nhất\nĐăng ký Vifotec",{"$f":"RANK(H11,$H$11:$H$49)","v":1}]
[2,"Đánh giá khả năng làm việc của kết cấu dầm liên hợp Thép Bê tông cải tiến (Gubeam)","Trần Mạnh Cường \nĐàm Vĩnh Hưng\nVũ Đức Trung"," 65CX1\n65CX1\n 65CX1","Công trình","PGS.TS. Nguyễn Ngọc Thắng\nTS. Khúc Hồng Vân","Xây dựng DD&CN",92.39999999999999,9.5,19,9.3,27.3,9,13.3,5,"Đạt giải nhất\nĐăng ký Vifotec"]
[3,"Nghiên cứu tái chế rác thải nhựa làm cốt liệu sản xuất bê tông xanh","Nguyễn Thanh Huyền \n Phạm Văn An \n Phạm Thị Hương Giang\n Vương Tuấn Hải","64QLXD1\n64QLXD1\n64QLXD1\n64QLXD1","Công trình","PGS. TS. Nguyễn Quang Phú","Vật liệu xây dựng",91,9.3,18.5,8.8,27.3,9.3,12.8,5,"Đạt giải nhì \nĐăng ký Vifotec"]
[4,"Xây dựng thư viện số công trình thủy lợi 3D tích hợp công nghệ thực tế tăng cường (AR) phục vụ giảng dạy và học tập","Nguyễn Đức Hậu \nNguyễn Hải Bình \nĐào Hoàng Hiệp \nHoàng Thị Ngọc Lan","66C2\n67C1\n67C1\n67C1","Công trình","TS. Lê Văn Thịnh\nTS. Lê Hồng Phương","Thủy công",{"$f":"SUM(I14:O14)","v":90.6},{"$f":"47/5","v":9.4},{"$f":"97/5","v":19.4},{"$f":"47/5","v":9.4},{"$f":"145/5","v":29},{"$f":"47/5","v":9.4},{"$f":"70/5","v":14},null,"Đạt giải nhì",{"$f":"RANK(H14,$H$11:$H$49)","v":4}]
[5,"Nghiên cứu sự suy giảm hệ số thấm do co hẹp lỗ rỗng và ảnh hưởng đến kết quả dự báo lún khi tính toán xử lý nền đất yếu bằng phương pháp cố kết trước","Nguyễn Quốc Quyền \nĐào Nhật Huy \nNguyễn Hữu Nam \nĐinh Tiến Đạt \nNguyễn Đức Hậu","65CT2\n65CT2\n65CT2\n66GT2 \n66C2","Công trình","TS. Hoàng Thị Lụa\nTS. Đỗ Tuấn Nghĩa","Địa kỹ thuật",{"$f":"SUM(I15:O15)","v":90.5},{"$f":"34/4","v":8.5},{"$f":"70/4","v":17.5},{"$f":"34/4","v":8.5},{"$f":"108/4","v":27},{"$f":"36/4","v":9},{"$f":"60/4","v":15},{"$f":"20/4","v":5},"Đạt giải nhì",{"$f":"RANK(H15,$H$11:$H$49)","v":5}]
[6,"The impact of BIM and AI digital technology  on smart construction projects in Hanoi","Lương Minh Huyền\nNguyễn Tuấn Kiệt","64QLXD2","Công trình","TS. Lê Minh Thoa\nTS. Đinh Thế Mạnh","Công nghệ và Quản lý xây dựng; \nKinh tế xây dựng;",90.19999999999999,9.2,18.4,9,26.8,8.6,13.2,5,"Đạt giải nhì"]
[7,"Dự đoán và phân tích ảnh hưởng của các tham số đầu vào đến khả năng chịu tải nén đúng tâm của cột thép nhồi bê tông  tiết diện chữ nhật bằng mô hình học máy lai.","Phùng Thị Tiên\nĐào Nhật Huy","65QLXD2\n65CT2","Công trình","TS. Phạm Văn Thành\nTS. Phạm Viết Ngọc","Sức bền- Kết cấu",89.2,9.4,19.6,9.4,28,9.2,13.6,null,"Đạt giải ba"]
[8,"Thiết kế và mô phỏng 3D Công trình bến tàu khách Hạ Long bằng Revit: Tiếp cận hiện đại trong trình bày dự án","Bùi Minh Phương\nPhạm Minh Tâm","63C2 \n64C1","Công trình","TS. Lê Tuấn Hải","Công trình Biển và đường thủy",{"$f":"SUM(I18:O18)","v":88.5},{"$f":"36/4","v":9},{"$f":"72/4","v":18},{"$f":"36/4","v":9},{"$f":"110/4","v":27.5},{"$f":"40/4","v":10},{"$f":"60/4","v":15},null,"Đạt giải ba",{"$f":"RANK(H18,$H$11:$H$49)","v":8}]
[9,"Nghiên cứu yêu cầu cấu tạo và các quy định về thiết kế  nút dầm - cột khung BTCT chịu động đất","Nguyễn Văn Hưởng \nĐoàn Hữu Hiếu\nTrần Thị Trà Mi"," 64CX3\n 64CX3\n 64CX1 ","Công trình","TS. Nguyễn Thị Thanh Thúy","Xây dựng DD&CN",88,9.3,19.3,9.3,27.3,9,13.8,null,"Đạt giải ba"]
[10,"Xây dựng hệ thống thông tin áp dụng BIM hồ chứa nước Ka Pét, tỉnh Lâm Đồng","Đỗ Trọng Đạt\nVũ Đình Long\nLa Đức Anh\nThái Hồng Quang","64QLXD3\n64QLXD2\n64QLXD2\n64QLXD3","Công trình","TS. Trần Văn Toản","Công nghệ và quản lý xây dựng",{"$f":"SUM(I20:O20)","v":88},{"$f":"45/5","v":9},{"$f":"95/5","v":19},{"$f":"46/5","v":9.2},{"$f":"137/5","v":27.4},{"$f":"46/5","v":9.2},{"$f":"71/5","v":14.2},null,"Đạt giải ba",{"$f":"RANK(H20,$H$11:$H$49)","v":9}]
[11,"Xây dựng khung ứng dụng mô hình số song sinh cho trạm bơm tiêu Ngọ Xá, Bắc Ninh","Đặng Công Hoàng Long\nNguyễn Tùng Dương\nHoàng Minh Châu","64CNK1\n65C2","Công trình","TS. Nguyễn Phương Dung\nTS. Lê Hồng Phương","Thủy công",{"$f":"SUM(I21:O21)","v":88},{"$f":"36/4","v":9},{"$f":"76/4","v":19},{"$f":"36/4","v":9},{"$f":"110/4","v":27.5},{"$f":"38/4","v":9.5},{"$f":"56/4","v":14},null,"Đạt giải ba",{"$f":"RANK(H21,$H$11:$H$49)","v":9}]
[12,"Phân tích ảnh hưởng do xoắn đến các thông số thiết kế cơ bản của kết cấu dầm hộp cong bằng BTCT DUL nhịp liên tục thi công bằng công nghệ lắp hẫng tịnh tiến","Đặng Anh Huy\nTrịnh Đức Lương\nNhữ Lê Minh\nĐặng Xuân Quý\nBùi Đức Nghĩa","64GT2\n64GT2\n64GT2\n64GT2\n64GT2","Công trình","TS.Đặng Việt Đức","Kỹ thuật xây dựng \ncông trình giao thông",87.4,9,19,9.4,27.6,9,13.4,null,"Đạt giải ba"]
[13,"Nghiên cứu thực nghiệm kết cấu giàn chịu lực thu nhỏ trong nhà máy sản xuất","Trần Thị Thu \nVũ Thanh Thịnh\nNguyễn Tuấn Anh","65CX3\n65CX3\n65CX3","Công trình","TS. Nguyễn Viết Chuyên","Sức bền- Kết cấu",87.00000000000001,9,19,9.2,27.6,9,13.2,null,"Đạt giải ba"]
[14,"Nghiên cứu ảnh hưởng của độ cứng nút khung đến ứng xử của khung thép nhà công nghiệp","Tăng Trung Kiên \nĐinh Vũ Hoàng Anh \nNguyễn Đức Lâm","64CX3 \n64CX2 \n64CX3","Công trình","TS. Bùi Sĩ Mười TS. Nguyễn Thị Thanh Thúy","Xây dựng DD&CN",86,8.8,18.8,9,27.3,8.8,13.3]
[15,"Ảnh hưởng hàm lượng hạt xốp EPS đến khối lượng  thể tích và cường độ nén của bê tông nhẹ","Lê Thị Yến Nhi \nNguyễn Phúc Hưng\nKhương Nguyễn Tiến Tài"," 65QLXD3\n 65QLXD3\n 65QLXD3","Công trình","TS. Hồ Hồng Sao\nTS. Nguyễn Thu Nga","Công nghệ và Quản lý xây dựng\n Kết cấu công trình",85.2,8.6,18.6,9.2,27.4,8.6,12.8]
[16,"Nghiên cứu cải tạo đất tan rã bằng enzyme sinh học","Hồ Trọng Ân","65V1","Công trình","TS. Nguyễn Quang Tuấn\nTS. Nguyễn Thị Ngọc Hương","Địa kỹ thuật",{"$f":"SUM(I26:O26)","v":85.2},{"$f":"45/5","v":9},{"$f":"95/5","v":19},{"$f":"34/4","v":8.5},{"$f":"110/4","v":27.5},{"$f":"40/4","v":10},{"$f":"56/5","v":11.2},null,null,{"$f":"RANK(H26,$H$11:$H$49)","v":15}]
[17,"Nghiên cứu gia cường cột Bê tông cốt thép bằng cách mở rộng tiết diện","Nguyễn Huy Vũ \nChu Hữu Thao \nNguyễn Anh Quân \nNguyễn Như Linh \nNguyễn Bá Tùng","64CX1 \n64CX2\n64CX2\n64CX1\n64CX1","Công trình","TS. Đoàn Xuân Quý\nTS. Phạm Thu Hiền","Xây dựng DD&CN",85,8.6,18.6,9.2,27.2,8.6,12.8]
[18,"Nghiên cứu xây dựng bản đồ số thông số các công trình thủy điện ở Việt Nam","Đoàn Thị Mỹ Tâm\nAn Vân Anh\nLê Trọng Thanh\nNgô Minh Dương","65C1","Công trình","TS. Hoàng Công Tuấn","Thủy điện và năng lượng tái tạo",{"$f":"SUM(I28:O28)","v":84.6},{"$f":"44/5","v":8.8},{"$f":"82/5","v":16.4},{"$f":"42/5","v":8.4},{"$f":"138/5","v":27.6},{"$f":"48/5","v":9.6},{"$f":"69/5","v":13.8},null,null,{"$f":"RANK(H28,$H$11:$H$49)","v":18}]
[19,"Phát triển ứng dụng WebAR trong trực quan hóa tương tác và phân tích nội lực kết cấu dầm","Ngô Việt Sơn\nKhương Quang Vinh\nDương Phúc Đức Anh\nĐặng Đức Huy \nĐoàn Ngọc Minh","65CNK","Công trình","TS. Lê Hồng Phương","Thủy công",{"$f":"SUM(I29:O29)","v":84.19999999999999},{"$f":"45/5","v":9},{"$f":"80/5","v":16},{"$f":"42/5","v":8.4},{"$f":"137/5","v":27.4},{"$f":"48/5","v":9.6},{"$f":"69/5","v":13.8},null,null,{"$f":"RANK(H29,$H$11:$H$49)","v":19}]
[20,"Ứng dụng các thuật toán trên nền tảng ngôn ngữ R để nghiên cứu xói mòn đất","Phạm Đông Hà \nTrịnh Thị Phương \nĐỗ Trung Hậu \nNguyễn Đức Hải","63C1 \n64C1\n64C1\n64C1","Công trình","TS. Lê Văn Thịnh","Thủy công",{"$f":"SUM(I30:O30)","v":83.99999999999999},{"$f":"44/5","v":8.8},{"$f":"81/5","v":16.2},{"$f":"42/5","v":8.4},{"$f":"137/5","v":27.4},{"$f":"48/5","v":9.6},{"$f":"68/5","v":13.6},null,null,{"$f":"RANK(H30,$H$11:$H$49)","v":20}]
[21,"Ứng xử của Khung bê tông cốt thép có kể đến  mô hình nút khung","Hoàng Minh Công \nĐào Quang Vinh \nLê Ngọc Kiên"," 64CX2\n 64CX2\n 64CX2","Công trình","TS. Nguyễn Thị Thanh Thúy\nTS. Bùi Sĩ Mười","Xây dựng DD&CN",83.8,8.5,18.3,8.5,27.5,9,12]
[22,"Nghiên cứu giải pháp cải tạo tràn xả lũ hồ Dụ, phường Kỳ Sơn, tỉnh Phú Thọ.","Ngô Minh Dương\nAn Vân Anh","65C1","Công trình","PGS.TS. Lê Xuân Khâm","Thủy công",{"$f":"SUM(I32:O32)","v":83.8},{"$f":"44/5","v":8.8},{"$f":"82/5","v":16.4},{"$f":"42/5","v":8.4},{"$f":"134/5","v":26.8},{"$f":"48/5","v":9.6},{"$f":"69/5","v":13.8},null,null,{"$f":"RANK(H32,$H$11:$H$49)","v":21}]
[23,"Nghiên cứu đê chắn sóng nổi có trồng cây ngập mặn","Trương Khánh Linh \n Lê Thị Ngọc Trang \n Nguyễn Duy Linh \n Lê Quang Trung","64CNK2","Công trình","PGS.TS. Lê Hải Trung\nTS. Hồ Hồng Sao","Công trình Biển và đường thủy",{"$f":"SUM(I33:O33)","v":83.8},{"$f":"42/5","v":8.4},{"$f":"81/5","v":16.2},{"$f":"41/5","v":8.2},{"$f":"138/5","v":27.6},{"$f":"48/5","v":9.6},{"$f":"69/5","v":13.8},null,null,{"$f":"RANK(H33,$H$11:$H$49)","v":21}]
[24,"Nghiên cứu xây dựng và phát triển công cụ mô hình tính toán động lực học bờ biển, áp dụng cho bờ biển vùng ĐBSCL","Lê Thị Thu Hiền\nĐào Phương Hà\nTrần Thế Quyền \nNguyễn Thu Giang\nNguyễn Khánh Huyền","66QLXD2","Công trình","TS. Phan Khánh Linh\nTS. Trương Hồng Sơn","Thủy công",{"$f":"SUM(I34:O34)","v":83.6},{"$f":"43/5","v":8.6},{"$f":"81/5","v":16.2},{"$f":"40/5","v":8},{"$f":"138/5","v":27.6},{"$f":"48/5","v":9.6},{"$f":"68/5","v":13.6},null,null,{"$f":"RANK(H34,$H$11:$H$49)","v":24}]
[25,"Nghiên cứu tác động của đê biển Bình Minh tới cây ngập mặn","Phạm Minh Tâm ","64C1","Công trình","PGS.TS. Lê Hải Trung\nTS. Phan Khánh Linh","Công trình Biển và đường thủy",{"$f":"SUM(I35:O35)","v":83},{"$f":"43/5","v":8.6},{"$f":"82/5","v":16.4},{"$f":"41/5","v":8.2},{"$f":"136/5","v":27.2},{"$f":"44/5","v":8.8},{"$f":"69/5","v":13.8},null,null,{"$f":"RANK(H35,$H$11:$H$49)","v":25}]
[26,"Nghiên cứu giải pháp chống gió bốc mái cho nhà dân vùng ven biển","Lê Hồng Sơn\nLê Minh Tuyến\nTrương Xuân Thành","64QLXD2","Công trình","TS. Nguyễn Thị Huệ\nTS. Đoàn Xuân Quý","Công nghệ và quản lý xây dựng",{"$f":"SUM(I36:O36)","v":82.8},{"$f":"43/5","v":8.6},{"$f":"81/5","v":16.2},{"$f":"40/5","v":8},{"$f":"133/5","v":26.6},{"$f":"48/5","v":9.6},{"$f":"69/5","v":13.8},null,null,{"$f":"RANK(H36,$H$11:$H$49)","v":26}]
[27,"Nghiên cứu và đánh giá vật liệu xây dựng để sản xuất bê tông chất lượng cao ứng dụng trong xây dựng","Phạm Văn An \nPhan Bá Khải \nĐặng Như Quỳnh\nĐàm Hùng Vũ \nTống Thị Hậu"," 64QLXD1\n 64QLXD1\n 64QLXD1\n 64QLXD1\n 64QLXD1","Công trình","PGS. TS. Nguyễn Quang Phú","Vật liệu xây dựng",82.4,7.8,18.3,8,27.5,8.8,12]
[28,"Nghiên cứu các mô hình tính toán kết cấu vách kép nhà nhiều tầng","Nông Khánh Duy\nĐào Tuấn Anh\nĐinh Trung Anh\nĐinh Vũ Hoàng Anh\nĐỗ Quang Phú"," 64CX2\n 64CX2\n 64CX2\n 64CX2\n 64CX2","Công trình","TS. Phạm Thu Hiền\nTS. Đoàn Xuân Quý","Xây dựng DD&CN",81.39999999999999,8,17.8,8,27,8.8,11.8]
[29,"Nghiên cứu ảnh hưởng của mực nước thượng lưu đến tần số dao động riêng của kết cấu bảo vệ mái thượng lưu đập đất bằng BT hoặc BTCT","Nguyễn Quốc Quyền \nHoàng Minh Châu \nĐoàn Thị Mỹ Tâm","65CT2\n65C2\n65C1","Công trình","TS. Nguyễn Thái Hoàng","Sức bền - Kết cấu",{"$f":"SUM(I39:O39)","v":81.2},{"$f":"42/5","v":8.4},{"$f":"80/5","v":16},{"$f":"40/5","v":8},{"$f":"133/5","v":26.6},{"$f":"44/5","v":8.8},{"$f":"67/5","v":13.4},null,null,{"$f":"RANK(H39,$H$11:$H$49)","v":29}]
[30,"Nghiên cứu sự thay đổi kích thước đến ứng xử của đập đá đổ bê tông bản mặt và đập bê tông đá hộc","Phạm Thị Hương Giang \nNguyễn Danh Hoàng\nNguyễn Thanh Huyền \nTrần Nhật Lâm \nNguyễn Minh Bảo"," 64QLXD1\n 64QLXD1\n 64QLXD1 \n S25-64CX\n S25-64CX","Công trình","TS. Phạm Nguyễn Hoàng\nPGS. TS. Nguyễn Quang Phú","Kết cấu công trình\n Vật liệu xây dựng",81,7.8,16,7.8,25.3,8.3,10.8,5]
[31,"Nghiên cứu biện pháp xử lý bục nền cát chảy đáy âu thuyền cụm đầu mối De, dự án Kexim1, tỉnh Thanh Hoá","Phạm Khắc Duy \nPhạm Minh Quân\nMai Trung Hiếu ","63CT1","Công trình","TS. Mai Lâm Tuấn","Công nghệ và quản lý xây dựng",{"$f":"SUM(I41:O41)","v":80.99999999999999},{"$f":"42/5","v":8.4},{"$f":"80/5","v":16},{"$f":"41/5","v":8.2},{"$f":"134/5","v":26.8},{"$f":"45/5","v":9},{"$f":"63/5","v":12.6},null,null,{"$f":"RANK(H41,$H$11:$H$49)","v":31}]
[32,"Nghiên cứu ảnh hưởng của bi mô men đối với dầm thép chữ I chịu uốn xoắn","Nguyễn Huy Thịnh \nNguyễn Đình Nghĩa \nNguyễn Văn Hưởng"," 64CX3 \n 64CX3 \n 64CX3","Công trình","TS. Bùi Sĩ Mười","Xây dựng DD&CN",80.60000000000001,7.8,17.6,8,26.6,8.8,11.8]
[33,"Ứng dụng công nghệ cảm biến quan trắc trong giám sát phản ứng kiềm-cốt liệu (ASR) trên kết cấu bê tông","Vũ Hải Hà","64QLXD2","Công trình","TS. Nguyễn Thị Huệ","Công nghệ và Quản lý xây dựng",80.2,7.8,17.6,7.8,26.6,8.6,11.8]
[34,"Nghiên cứu giải pháp tiêu thoát cho khu công nghiệp Hòa Ninh-Đà Nẵng","Phạm Quốc Bảo\nNguyễn Doãn Tuấn Kiệt","65C1\nS26-65C","Công trình","TS. Nguyễn Văn Sơn","Công nghệ và quản lý xây dựng",{"$f":"SUM(I44:O44)","v":80},{"$f":"41/5","v":8.2},{"$f":"80/5","v":16},{"$f":"40/5","v":8},{"$f":"135/5","v":27},{"$f":"44/5","v":8.8},{"$f":"60/5","v":12},null,null,{"$f":"RANK(H44,$H$11:$H$49)","v":34}]
[35,"Tính toán thiết kế và xây dựng phương án bố trí mặt bằng công trình bến cảng Sài Gòn kết hợp ứng dụng mô hình 3D Luminon, phục vụ trực quan và giảng dạy","Hoàng Ngọc Huy\nLê Đăng Dương","64C1\n64C1","Công trình","TS. Lê Tuấn Hải","Công trình Biển và đường thủy",{"$f":"SUM(I45:N45)","v":80},{"$f":"34/4","v":8.5},{"$f":"64/4","v":16},{"$f":"34/4","v":8.5},{"$f":"110/4","v":27.5},{"$f":"38/4","v":9.5},{"$f":"40/4","v":10},null,null,{"$f":"RANK(H45,$H$11:$H$49)","v":34}]
[36,"Ứng dụng khả năng tính toán song song trong xây dựng đường quá trình điều tiết lũ đảm bảo an toàn đập thủy điện","Tô Linh Chi","66C2","Công trình","TS. Phan Trần Hồng Long","Thủy điện và năng lượng tái tạo",{"$f":"SUM(I46:O46)","v":80},{"$f":"34/4","v":8.5},{"$f":"62/4","v":15.5},{"$f":"34/4","v":8.5},{"$f":"108/4","v":27},{"$f":"38/4","v":9.5},{"$f":"44/4","v":11},null,null,{"$f":"RANK(H46,$H$11:$H$49)","v":34}]
[37,"Nghiên cứu tính toán khung kết cấu thép theo TCVN và tiêu chuẩn Hoa Kỳ","Kiều Xuân Hùng \nBùi Đình Luyện\nNguyễn Văn Đạt \nTrần Phương Nam \nTrần Thị Loan"," 66CX3\n 66CX3\n 64QLXD1\n 64QLXD1\n 64QLXD1 ","Công trình","TS. Phạm Nguyễn Hoàng","Kết cấu công trình",78,7.4,17.2,7.8,25.6,8.4,11.6]
[38,"Giải pháp thi công cừ chữ C bảo vệ hố móng công trình trong đô thị","Lại Minh Nghĩa","63CT2","Công trình","PGS.TS Nguyễn Trọng Tư","Công nghệ và Quản lý xây dựng",76.4,8,16.6,7.6,25.4,7.6,11.2]
[39,"Công nghệ tự động hóa và robot trong xây dựng","Lê Tùng Anh\nChu Minh Dũng","66CX1\n66CX1","Công trình","TS. Tạ Văn Phấn","Xây dựng DD&CN",75,7.2,16.6,7.6,25,8,10.6]
[]
[]
["Mỗi Đơn vị đề xuất tối đa 01 giải nhất tham gia xét giải cấp Trường."]
["Báo cáo đề nghị khoa xét giải cấp Trường: Nghiên cứu cơ chế phá hoại của tường chắn đất có cốt và đề xuất giải pháp tối ưu\nGVHD: TS. Đỗ Tuấn Nghĩa\n              TS. Hoàng Thị Lụa"]
[null,"THƯ KÝ",{"$nulls":8},"CHỦ TỊCH HỘI ĐỒNG"]
[null,"(Ghi rõ họ tên và ký tên)",{"$nulls":8},"(Ghi rõ họ tên và ký tên)"]